fUST/lending_fUST_20260502
["ID","MTS","AMOUNT","RATE_DAILY","PERIOD"]
[421448143,1777662648000,-2729.64,0.00019178,2]
[421448142,1777662648000,-1716.94,0.00019178,2]
[421448141,1777662648000,-1000.0,0.00019178,2]
[421448144,1777662648000,-500.0,0.00019178,2]
[421448140,1777662648000,-2054.11,0.00019178,2]
[421448135,1777662648000,-500.0,0.00019178,2]
[421448139,1777662648000,-500.0,0.00019178,2]
[421448138,1777662648000,-1052.25,0.00019178,2]
[421448136,1777662648000,-846.42,0.00019178,2]
[421448137,1777662648000,-1079.29,0.00019178,2]
[421448145,1777662648000,-500.0,0.00019178,2]
[421448134,1777662648000,-569.84926204,0.00019178,2]
[421448146,1777662648000,-500.0,0.00019178,2]
[421448158,1777662648000,-500.0,0.00019178,2]
[421448147,1777662648000,-883.43,0.00019178,2]
[421448150,1777662648000,-500.0,0.00019178,2]
[421448149,1777662648000,-500.0,0.00019178,2]
[421448151,1777662648000,-600.67,0.00019178,2]
[421448155,1777662648000,-500.0,0.00019178,2]
[421448153,1777662648000,-500.0,0.00019178,2]
[421448152,1777662648000,-760.98,0.00019178,2]
[421448157,1777662648000,-500.0,0.00019178,2]
[421448156,1777662648000,-500.0,0.00019178,2]
[421448154,1777662648000,-724.95,0.00019178,2]
[421448160,1777662648000,-500.0,0.00019178,2]
[421448161,1777662648000,-505.05861477,0.00019178,2]
[421448132,1777662648000,-500.0,0.00019178,2]
[421448170,1777662648000,-576.13,0.00019178,2]
[421448148,1777662648000,-4731.45,0.00019178,2]
[421448130,1777662648000,-575.4,0.00019178,2]
[421448114,1777662648000,-500.0,0.00019178,2]
[421448131,1777662648000,-2255.76,0.00019178,2]
[421448159,1777662648000,-225.38977988,0.00019178,2]
[421448110,1777662648000,-500.0,0.00019178,2]
[421448111,1777662648000,-500.0,0.00019178,2]
[421448102,1777662648000,-4800.01,0.00019178,2]
[421448103,1777662648000,-500.0,0.00019178,2]
[421448104,1777662648000,-500.0,0.00019178,2]
[421448106,1777662648000,-1675.71,0.00019178,2]
[421448105,1777662648000,-500.0,0.00019178,2]
[421448109,1777662648000,-1919.5,0.00019178,2]
[421448107,1777662648000,-500.0,0.00019178,2]
[421448108,1777662648000,-500.0,0.00019178,2]
[421448113,1777662648000,-500.0,0.00019178,2]
[421448119,1777662648000,-556.9,0.00019178,2]
[421448128,1777662648000,-500.0,0.00019178,2]
[421448121,1777662648000,-500.0,0.00019178,2]
[421448112,1777662648000,-1294.85,0.00019178,2]
[421448115,1777662648000,-500.0,0.00019178,2]
[421448118,1777662648000,-1208.46,0.00019178,2]
[421448116,1777662648000,-691.49,0.00019178,2]
[421448117,1777662648000,-2181.75,0.00019178,2]
[421448124,1777662648000,-722.14,0.00019178,2]
[421448122,1777662648000,-500.0,0.00019178,2]
[421448125,1777662648000,-625.31,0.00019178,2]
[421448126,1777662648000,-500.0,0.00019178,2]
[421448123,1777662648000,-283.20088551,0.00019178,2]
[421448127,1777662648000,-500.0,0.00019178,2]
[421448133,1777662648000,-582.05,0.00019178,2]
[421448129,1777662648000,-1064.96,0.00019178,2]
[421448120,1777662648000,-1513.73,0.00019178,2]
[421448162,1777662648000,-500.0,0.00019178,2]
[421448183,1777662648000,-500.0,0.00019178,2]
[421448163,1777662648000,-500.0,0.00019178,2]
[421448194,1777662648000,-500.0,0.00019178,2]
[421448201,1777662648000,-500.0,0.00019178,2]
[421448202,1777662648000,-500.0,0.00019178,2]
[421448199,1777662648000,-4654.33,0.00019178,2]
[421448203,1777662648000,-1506.07,0.00019178,2]
[421448205,1777662648000,-500.0,0.00019178,2]
[421448206,1777662648000,-500.0,0.00019178,2]
[421448204,1777662648000,-500.0,0.00019178,2]
[421448200,1777662648000,-909.85,0.00019178,2]
[421448210,1777662648000,-2218.35,0.00019178,2]
[421448211,1777662648000,-500.0,0.00019178,2]
[421448208,1777662648000,-500.0,0.00019178,2]
[421448207,1777662648000,-533.56,0.00019178,2]
[421448195,1777662648000,-743.42,0.00019178,2]
[421448213,1777662648000,-500.0,0.00019178,2]
[421448215,1777662648000,-500.0,0.00019178,2]
[421448221,1777662648000,-500.0,0.00019178,2]
[421448224,1777662648000,-500.0,0.00019178,2]
[421448217,1777662648000,-500.0,0.00019178,2]
[421448218,1777662648000,-2456.41,0.00019178,2]
[421448220,1777662648000,-231.59338011,0.00019178,2]
[421448222,1777662648000,-500.0,0.00019178,2]
[421448214,1777662648000,-500.0,0.00019178,2]
[421448225,1777662648000,-500.0,0.00019178,2]
[421448212,1777662648000,-4405.67,0.00019178,2]
[421448216,1777662648000,-205.7953194,0.00019178,2]
[421448219,1777662648000,-532.25,0.00019178,2]
[421448171,1777662648000,-643.26378416,0.00019178,2]
[421448223,1777662648000,-500.0,0.00019178,2]
[421448188,1777662648000,-151.0,0.00019178,2]
[421448209,1777662648000,-500.0,0.00019178,2]
[421448189,1777662648000,-151.0,0.00019178,2]
[421448198,1777662648000,-3630.42,0.00019178,2]
[421448169,1777662648000,-500.0,0.00019178,2]
[421448166,1777662648000,-500.0,0.00019178,2]
[421448164,1777662648000,-716.32,0.00019178,2]
[421448168,1777662648000,-4538.24,0.00019178,2]
[421448167,1777662648000,-500.0,0.00019178,2]
[421448173,1777662648000,-500.0,0.00019178,2]
[421448172,1777662648000,-500.0,0.00019178,2]
[421448181,1777662648000,-500.0,0.00019178,2]
[421448178,1777662648000,-166.05696405,0.00019178,2]
[421448175,1777662648000,-500.0,0.00019178,2]
[421448177,1777662648000,-785.19,0.00019178,2]
[421448176,1777662648000,-500.0,0.00019178,2]
[421448174,1777662648000,-658.5,0.00019178,2]
[421448179,1777662648000,-680.78,0.00019178,2]
[421448226,1777662648000,-7692.48,0.00019178,2]
[421448191,1777662648000,-500.0,0.00019178,2]
[421448165,1777662648000,-500.0,0.00019178,2]
[421448196,1777662648000,-500.0,0.00019178,2]
[421448185,1777662648000,-1908.01,0.00019178,2]
[421448190,1777662648000,-151.0,0.00019178,2]
[421448187,1777662648000,-500.0,0.00019178,2]
[421448192,1777662648000,-151.0,0.00019178,2]
[421448197,1777662648000,-500.0,0.00019178,2]
[421448186,1777662648000,-500.0,0.00019178,2]
[421448182,1777662648000,-209.13690189,0.00019178,2]
[421448180,1777662648000,-1726.95,0.00019178,2]
[421448184,1777662648000,-500.0,0.00019178,2]
[421448193,1777662648000,-500.0,0.00019178,2]
[421448233,1777662649000,-500.0,0.00019178,2]
[421448236,1777662649000,-500.0,0.00019178,2]
[421448227,1777662649000,-688.11,0.00019178,2]
[421448232,1777662649000,-500.0,0.00019178,2]
[421448230,1777662649000,-3899.03,0.00019178,2]
[421448229,1777662649000,-500.0,0.00019178,2]
[421448231,1777662649000,-500.0,0.00019178,2]
[421448228,1777662649000,-500.0,0.00019178,2]
[421448237,1777662649000,-631.99,0.00019178,2]
[421448235,1777662649000,-795.79,0.00019178,2]
[421448238,1777662649000,-3643.79,0.00019178,2]
[421448243,1777662649000,-8650.12,0.00019178,2]
[421448239,1777662649000,-830.81,0.00019178,2]
[421448250,1777662649000,-774.79113638,0.00019178,2]
[421448234,1777662649000,-623.31,0.00019178,2]
[421448245,1777662649000,-972.45,0.00019178,2]
[421448242,1777662649000,-500.0,0.00019178,2]
[421448247,1777662649000,-500.0,0.00019178,2]
[421448249,1777662649000,-434.12763057,0.00019178,2]
[421448246,1777662649000,-647.47,0.00019178,2]
[421448241,1777662649000,-766.72,0.00019178,2]
[421448248,1777662649000,-500.0,0.00019178,2]
[421448240,1777662649000,-500.0,0.00019178,2]
[421448244,1777662649000,-678.29,0.00019178,2]
[421448302,1777663832000,-1374.65314757,0.00012265,2]
[421448295,1777663832000,-30.79091776,0.00012265,2]
[421448293,1777663832000,-1045.6639,0.00012142,2]
[421448387,1777663838000,-177.0,0.00014452,2]
[421448386,1777663838000,-1000.0,0.00013699,2]
[421448388,1777663838000,-204.0,0.00016452,2]
[421448389,1777663838000,-184.109631,0.00016497,2]
[421448385,1777663838000,-3594.55593467,0.00012265,2]
[421448392,1777663838000,-231.0,0.00018452,2]
[421448391,1777663838000,-228.0,0.00017589,3]
[421448394,1777663838000,-4587.89076902,0.0001889,2]
[421448393,1777663838000,-158.30370069,0.00018867,2]
[421448395,1777663838000,-365.24031967,0.0001889,2]
[421448390,1777663838000,-160.0,0.00017273,2]
[421448399,1777663841000,-651.03782292,0.0001889,2]
[421448401,1777663841000,-2433.1418704,0.0001889,2]
[421448400,1777663841000,-8062.67349115,0.0001889,2]
[421448421,1777663846000,-333.50222166,0.00018867,3]
[421448422,1777663846000,-2175.63122485,0.0001889,2]
[421448420,1777663846000,-311.26470971,0.00018867,3]
[421448424,1777663846000,-28057.86598955,0.0001889,2]
[421448425,1777663846000,1138.83088821,0.0001,2]
[421448423,1777663846000,-25936.97707419,0.0001889,2]
[421448428,1777663865000,589.83851533,7.857e-05,2]
[421448438,1777664793000,10000.0,0.00021,120]
[421448441,1777664830000,3462.0,0.00021,120]
[421448444,1777664876000,5000.0,0.00021,120]
[421448520,1777665038000,-243.81260019,0.00014732,2]
[421448521,1777665038000,-205.769586,0.00015068,2]
[421448517,1777665038000,-1000.0,0.00013699,2]
[421448519,1777665038000,-1000.0,0.00013804,2]
[421448516,1777665038000,-213.749434,0.00013699,2]
[421448524,1777665038000,-1565.38233054,0.000156,2]
[421448514,1777665038000,-215.31502354,0.00012732,2]
[421448515,1777665038000,-210.693,0.00012852,2]
[421448523,1777665038000,-2415.31606531,0.000156,2]
[421448506,1777665038000,-4413.33305958,8.776e-05,2]
[421448513,1777665038000,-2345.7211218,0.00012515,2]
[421448511,1777665038000,-300.0,0.00012514,2]
[421448503,1777665038000,-1138.83088821,8.688e-05,2]
[421448510,1777665038000,-210.22,0.00011075,11]
[421448505,1777665038000,-158.31987025,8.732e-05,2]
[421448508,1777665038000,-186.8174469,0.00010732,2]
[421448507,1777665038000,-601.55581533,0.0001,2]
[421448518,1777665038000,-311.0,0.00013731,2]
[421448504,1777665038000,-542.0,8.688e-05,2]
[421448522,1777665038000,-499.7150356,0.000156,2]
[421448527,1777665038000,-7391.31825846,0.00015762,2]
[421448525,1777665038000,-1990.34919788,0.000156,2]
[421448538,1777665038000,-500.0,0.00015762,2]
[421448537,1777665038000,-500.0,0.00015762,2]
[421448549,1777665038000,-453.95629022,0.00015762,2]
[421448547,1777665038000,-500.0,0.00015762,2]
[421448544,1777665038000,-277.46288605,0.00015762,2]
[421448543,1777665038000,-500.0,0.00015762,2]
[421448545,1777665038000,-500.0,0.00015762,2]
[421448546,1777665038000,-500.0,0.00015762,2]
[421448541,1777665038000,-500.0,0.00015762,2]
[421448539,1777665038000,-500.0,0.00015762,2]
[421448548,1777665038000,-500.0,0.00015762,2]
[421448542,1777665038000,-500.0,0.00015762,2]
[421448536,1777665038000,-281.71191341,0.00015762,2]
[421448529,1777665038000,-206.1482755,0.00015762,2]
[421448526,1777665038000,-500.0,0.00015762,2]
[421448540,1777665038000,-500.0,0.00015762,2]
[421448530,1777665038000,-500.0,0.00015762,2]
[421448532,1777665038000,-500.0,0.00015762,2]
[421448528,1777665038000,-500.0,0.00015762,2]
[421448534,1777665038000,-384.42862188,0.00015762,2]
[421448533,1777665038000,-500.0,0.00015762,2]
[421448535,1777665038000,-500.0,0.00015762,2]
[421448531,1777665038000,-500.0,0.00015762,2]
[421448554,1777665039000,-500.0,0.00015762,2]
[421448551,1777665039000,-500.0,0.00015762,2]
[421448550,1777665039000,-500.0,0.00015762,2]
[421448552,1777665039000,-500.0,0.00015762,2]
[421448553,1777665039000,-500.0,0.00015762,2]
[421448561,1777665039000,-500.0,0.00015762,2]
[421448555,1777665039000,-500.0,0.00015762,2]
[421448563,1777665039000,-1275641.3865635,0.00015763,2]
[421448557,1777665039000,-500.0,0.00015762,2]
[421448562,1777665039000,-500.0,0.00015762,2]
[421448556,1777665039000,-500.0,0.00015762,2]
[421448560,1777665039000,-500.0,0.00015762,2]
[421448559,1777665039000,-500.0,0.00015762,2]
[421448558,1777665039000,-500.0,0.00015762,2]
[421448595,1777665043000,-3422.40111646,0.00015763,2]
[421448610,1777665046000,-43285.49936851,0.00015763,2]
[421448607,1777665046000,-1740.38670354,0.00015762,2]
[421448609,1777665046000,-5056.88018323,0.00015763,2]
[421448608,1777665046000,-4127.95500936,0.00015762,2]
[421448612,1777665136000,52383.16,0.00021918,120]
[421448613,1777665413000,230.90595147,0.00020331,120]
[421448757,1777666232000,-177.0,0.0001529,2]
[421448773,1777666232000,-500.0,0.00015387,2]
[421448769,1777666232000,-500.0,0.00015387,2]
[421448771,1777666232000,-151.5,0.00015387,2]
[421448759,1777666232000,-192.40120149,0.00015387,2]
[421448760,1777666232000,-500.0,0.00015387,2]
[421448762,1777666232000,-151.5,0.00015387,2]
[421448755,1777666232000,-727.54522142,0.00015287,2]
[421448748,1777666232000,-213.749435,0.00014304,2]
[421448767,1777666232000,-273.1786336,0.00015387,2]
[421448766,1777666232000,-500.0,0.00015387,2]
[421448754,1777666232000,-205.769586,0.00015068,2]
[421448752,1777666232000,-18639.26678741,0.00015,10]
[421448750,1777666232000,-500.0,0.00014999,2]
[421448744,1777666232000,-4754.06614565,0.00012897,2]
[421448747,1777666232000,-1000.0,0.00013699,2]
[421448785,1777666232000,-353.18406239,0.00015387,2]
[421448768,1777666232000,-277.0021995,0.00015387,2]
[421448775,1777666232000,-151.5,0.00015387,2]
[421448764,1777666232000,-151.5,0.00015387,2]
[421448791,1777666232000,-500.0,0.0001556,2]
[421448815,1777666232000,-597.19833939,0.0001556,2]
[421448809,1777666232000,-500.0,0.0001556,2]
[421448813,1777666232000,-500.0,0.0001556,2]
[421448822,1777666232000,-2817.85544935,0.00015561,2]
[421448811,1777666232000,-500.0,0.0001556,2]
[421448807,1777666232000,-500.0,0.0001556,2]
[421448823,1777666232000,-637.92171028,0.00015561,2]
[421448826,1777666232000,-300.5169114,0.00015561,2]
[421448817,1777666232000,-58240.65748328,0.00015561,2]
[421448819,1777666232000,-4453.54923425,0.00015561,2]
[421448802,1777666232000,-500.0,0.0001556,2]
[421448799,1777666232000,-647.43715147,0.0001556,2]
[421448796,1777666232000,-500.0,0.0001556,2]
[421448783,1777666232000,-500.0,0.00015387,2]
[421448779,1777666232000,-253.6173191,0.00015387,2]
[421448781,1777666232000,-500.0,0.00015387,2]
[421448777,1777666232000,-248.60296465,0.00015387,2]
[421448794,1777666232000,-500.0,0.0001556,2]
[421448805,1777666232000,-386.07154117,0.0001556,2]
[421448788,1777666232000,-234.687,0.0001553,2]
[421448938,1777666241000,-1832.65379568,0.00015561,2]
[421449091,1777666244000,-4072.36987339,0.00015561,2]
[421449092,1777666244000,-15674.1178605,0.00015561,2]
[421449225,1777667431000,-500.0,0.00015375,2]
[421449223,1777667431000,-500.0,0.00015375,2]
[421449204,1777667431000,-524.22268346,0.00015375,2]
[421449203,1777667431000,-159.77214579,0.00015375,2]
[421449206,1777667431000,-500.0,0.00015375,2]
[421449210,1777667431000,-500.0,0.00015375,2]
[421449199,1777667431000,-500.0,0.00015375,2]
[421449208,1777667431000,-500.0,0.00015375,2]
[421449201,1777667431000,-152.03555045,0.00015375,2]
[421449193,1777667431000,-500.0,0.00015005,2]
[421449195,1777667431000,-184.10963,0.00015068,2]
[421449191,1777667431000,-213.749435,0.00014367,2]
[421449188,1777667431000,-1000.0,0.00013699,2]
[421449190,1777667431000,-1000.0,0.00014259,2]
[421449184,1777667431000,-5000.0,0.00012897,2]
[421449212,1777667431000,-500.0,0.00015375,2]
[421449197,1777667431000,-177.0,0.00015093,2]
[421449214,1777667431000,-500.0,0.00015375,2]
[421449186,1777667431000,-605.0,0.00013027,2]
[421449232,1777667431000,-7322.96835519,0.00015449,2]
[421449230,1777667431000,-174.84,0.00015428,2]
[421449251,1777667431000,-500.0,0.00015549,2]
[421449255,1777667431000,-500.0,0.00015549,2]
[421449249,1777667431000,-500.0,0.00015549,2]
[421449247,1777667431000,-630.44945953,0.00015549,2]
[421449245,1777667431000,-500.0,0.00015549,2]
[421449242,1777667431000,-500.0,0.00015549,2]
[421449243,1777667431000,-500.0,0.00015549,2]
[421449240,1777667431000,-500.0,0.00015549,2]
[421449253,1777667431000,-375.56848493,0.00015549,2]
[421449238,1777667431000,-5281.50754161,0.00015548,2]
[421449234,1777667431000,-193.1021349,0.00015479,2]
[421449222,1777667431000,-500.0,0.00015375,2]
[421449218,1777667431000,-500.0,0.00015375,2]
[421449220,1777667431000,-500.0,0.00015375,2]
[421449227,1777667431000,-500.0,0.00015375,2]
[421449229,1777667431000,-572.28204926,0.00015375,2]
[421449216,1777667431000,-500.0,0.00015375,2]
[421449236,1777667431000,-2695.3388713,0.00015479,2]
[421449283,1777667432000,-500.0,0.00015549,2]
[421449279,1777667432000,-500.0,0.00015549,2]
[421449286,1777667432000,-500.0,0.00015549,2]
[421449277,1777667432000,-500.0,0.00015549,2]
[421449285,1777667432000,-500.0,0.00015549,2]
[421449275,1777667432000,-500.0,0.00015549,2]
[421449281,1777667432000,-500.0,0.00015549,2]
[421449271,1777667432000,-500.0,0.00015549,2]
[421449270,1777667432000,-500.0,0.00015549,2]
[421449266,1777667432000,-500.0,0.00015549,2]
[421449268,1777667432000,-500.0,0.00015549,2]
[421449262,1777667432000,-462.29812949,0.00015549,2]
[421449264,1777667432000,-304.32715147,0.00015549,2]
[421449260,1777667432000,-500.0,0.00015549,2]
[421449257,1777667432000,-620.40264294,0.00015549,2]
[421449258,1777667432000,-500.0,0.00015549,2]
[421449273,1777667432000,-500.0,0.00015549,2]
[421449290,1777667432000,-500.0,0.00015549,2]
[421449288,1777667432000,-500.0,0.00015549,2]
[421449298,1777667432000,-500.0,0.00015549,2]
[421449316,1777667432000,-500.0,0.00015549,2]
[421449318,1777667432000,-11217.66773468,0.0001555,2]
[421449315,1777667432000,-500.0,0.00015549,2]
[421449313,1777667432000,-500.0,0.00015549,2]
[421449317,1777667432000,-500.0,0.00015549,2]
[421449312,1777667432000,-500.0,0.00015549,2]
[421449314,1777667432000,-500.0,0.00015549,2]
[421449308,1777667432000,-500.0,0.00015549,2]
[421449310,1777667432000,-500.0,0.00015549,2]
[421449303,1777667432000,-500.0,0.00015549,2]
[421449306,1777667432000,-500.0,0.00015549,2]
[421449301,1777667432000,-500.0,0.00015549,2]
[421449299,1777667432000,-302.09624508,0.00015549,2]
[421449305,1777667432000,-500.0,0.00015549,2]
[421449294,1777667432000,-500.0,0.00015549,2]
[421449296,1777667432000,-500.0,0.00015549,2]
[421449309,1777667432000,-500.0,0.00015549,2]
[421449292,1777667432000,-500.0,0.00015549,2]
[421449330,1777667437000,-6714.18825247,0.0001555,2]
[421449331,1777667438000,-1462.748,0.0001555,2]
[421449332,1777667438000,-3297.35962132,0.0001555,2]
[421449333,1777667438000,-23000.0000003,0.0001555,2]
[421449348,1777667440000,-7826.0,0.0001555,2]
[421449359,1777667443000,-250.1312,0.0001555,2]
[421449372,1777667446000,-385583.07282697,0.0001555,2]
[421449367,1777667446000,-3202.551,0.0001555,2]
[421449370,1777667446000,-31321.84848189,0.0001555,2]
[421449369,1777667446000,-58207.01152582,0.0001555,2]
[421449371,1777667446000,-3448.17703735,0.0001555,2]
[421449368,1777667446000,-7842.09365619,0.0001555,2]
[421449366,1777667446000,-35954.91397064,0.0001555,2]
[421449387,1777667474000,-1740.38670354,0.0001188,2]
[421449522,1777668638000,-315.45809206,8.874e-05,2]
[421449524,1777668638000,-546.0,8.964e-05,2]
[421449523,1777668638000,-3544.04856261,8.874e-05,2]
[421449527,1777668638000,-4321.23067189,9.425e-05,2]
[421449525,1777668638000,-160.41217651,9.101e-05,2]
[421449526,1777668638000,-300.0,9.424e-05,2]
[421449528,1777668638000,-300.0,9.612e-05,2]
[421449529,1777668638000,-300.0,9.612e-05,2]
[421449539,1777668638000,-300.0,9.612e-05,2]
[421449531,1777668638000,-300.0,9.612e-05,2]
[421449534,1777668638000,-300.0,9.612e-05,2]
[421449532,1777668638000,-300.0,9.612e-05,2]
[421449533,1777668638000,-300.0,9.612e-05,2]
[421449537,1777668638000,-300.0,9.612e-05,2]
[421449535,1777668638000,-300.0,9.612e-05,2]
[421449536,1777668638000,-300.0,9.612e-05,2]
[421449538,1777668638000,-300.0,9.612e-05,2]
[421449530,1777668638000,-300.0,9.612e-05,2]
[421449554,1777668639000,-500.0,0.00015147,2]
[421449555,1777668639000,-215.40174548,0.00015147,2]
[421449556,1777668639000,-500.0,0.00015147,2]
[421449557,1777668639000,-337.82122041,0.00015147,2]
[421449561,1777668639000,-500.0,0.00015147,2]
[421449559,1777668639000,-500.0,0.00015147,2]
[421449560,1777668639000,-500.0,0.00015147,2]
[421449551,1777668639000,-247.03475182,0.00015101,2]
[421449563,1777668639000,-498.1686926,0.00015147,2]
[421449558,1777668639000,-500.0,0.00015147,2]
[421449552,1777668639000,-500.0,0.00015147,2]
[421449549,1777668639000,-4927.39545783,0.00015048,2]
[421449548,1777668639000,-255.42,0.00014715,2]
[421449553,1777668639000,-500.0,0.00015147,2]
[421449565,1777668639000,-500.0,0.00015147,2]
[421449547,1777668639000,-1000.0,0.00013699,2]
[421449544,1777668639000,-3604.53441863,0.00012,2]
[421449546,1777668639000,-1000.0,0.00013699,2]
[421449543,1777668639000,-189.28636828,0.00011101,2]
[421449542,1777668639000,-300.0,9.612e-05,2]
[421449541,1777668639000,-300.0,9.612e-05,2]
[421449540,1777668639000,-300.0,9.612e-05,2]
[421449550,1777668639000,-173.279652,0.00015068,2]
[421449564,1777668639000,-500.0,0.00015147,2]
[421449545,1777668639000,-218.16056005,0.00013101,2]
[421449566,1777668639000,-500.0,0.00015147,2]
[421449562,1777668639000,-500.0,0.00015147,2]
[421449590,1777668639000,-316.20684331,0.00015148,2]
[421449589,1777668639000,-18636.20109712,0.00015148,2]
[421449587,1777668639000,-500.0,0.00015147,2]
[421449580,1777668639000,-500.0,0.00015147,2]
[421449584,1777668639000,-500.0,0.00015147,2]
[421449586,1777668639000,-500.0,0.00015147,2]
[421449588,1777668639000,-500.0,0.00015147,2]
[421449585,1777668639000,-500.0,0.00015147,2]
[421449582,1777668639000,-454.62188576,0.00015147,2]
[421449581,1777668639000,-500.0,0.00015147,2]
[421449577,1777668639000,-500.0,0.00015147,2]
[421449583,1777668639000,-239.02287916,0.00015147,2]
[421449575,1777668639000,-500.0,0.00015147,2]
[421449579,1777668639000,-557.27020813,0.00015147,2]
[421449576,1777668639000,-500.0,0.00015147,2]
[421449574,1777668639000,-500.0,0.00015147,2]
[421449571,1777668639000,-500.0,0.00015147,2]
[421449573,1777668639000,-530.69185656,0.00015147,2]
[421449572,1777668639000,-500.0,0.00015147,2]
[421449567,1777668639000,-500.0,0.00015147,2]
[421449570,1777668639000,-478.78534887,0.00015147,2]
[421449569,1777668639000,-408.99987152,0.00015147,2]
[421449568,1777668639000,-500.0,0.00015147,2]
[421449578,1777668639000,-500.0,0.00015147,2]
[421449603,1777668641000,-744.24204284,0.00015148,2]
[421449601,1777668641000,-213.749435,0.00013699,2]
[421449602,1777668641000,-786.250565,0.00015148,2]
[421449626,1777668643000,-841.45616995,0.00015148,2]
[421449625,1777668643000,-8349.93678142,0.00015148,2]
[421449630,1777668646000,-247711.60915158,0.00015148,2]
[421449636,1777669012000,174.15925864,0.00020401,120]
[421449671,1777669832000,-544.5541279,0.00013699,2]
[421449682,1777669832000,-500.0,0.00014847,2]
[421449681,1777669832000,-586.47485429,0.00014847,2]
[421449674,1777669832000,-151.0,0.000146,2]
[421449670,1777669832000,-455.4458721,0.00013699,2]
[421449673,1777669832000,-1000.0,0.00013854,2]
[421449672,1777669832000,-615.0,0.00013699,2]
[421449676,1777669832000,-151.0,0.000148,2]
[421449675,1777669832000,-151.0,0.000147,2]
[421449678,1777669832000,-151.0,0.000148,2]
[421449684,1777669832000,-500.0,0.00014847,2]
[421449679,1777669832000,-151.0,0.000148,2]
[421449680,1777669832000,-204.84628363,0.000148,2]
[421449685,1777669832000,-500.0,0.00014847,2]
[421449683,1777669832000,-500.0,0.00014847,2]
[421449687,1777669832000,-471.00254213,0.00014847,2]
[421449688,1777669832000,-298.71808482,0.00014847,2]
[421449690,1777669832000,-26678.15186188,0.00014848,2]
[421449689,1777669832000,-500.0,0.00014847,2]
[421449686,1777669832000,-395.25224535,0.00014847,2]
[421449677,1777669832000,-151.0,0.000148,2]
[421449751,1777669838000,-4086.83690465,0.00014848,2]
[421449841,1777669846000,-9509.23842076,0.00014848,2]
[421449849,1777670314000,12827.99105786,0.00021,120]
[421449918,1777671039000,-213.749434,0.00013699,2]
[421449917,1777671039000,-160.72083591,0.00013586,2]
[421449931,1777671039000,-410.532398,0.00014546,2]
[421449925,1777671039000,-183.32823415,0.000144,2]
[421449920,1777671039000,-781.07250796,0.00013699,2]
[421449929,1777671039000,-605.0,0.00014545,2]
[421449935,1777671039000,-500.0,0.00014546,2]
[421449919,1777671039000,-1000.0,0.00013699,2]
[421449923,1777671039000,-188.03,0.0001394,2]
[421449924,1777671039000,-196.64,0.00014004,2]
[421449927,1777671039000,-10228.16695051,0.00014545,2]
[421449930,1777671039000,-500.0,0.00014546,2]
[421449934,1777671039000,-500.0,0.00014546,2]
[421449932,1777671039000,-500.0,0.00014546,2]
[421449921,1777671039000,-218.92749204,0.00013699,2]
[421449922,1777671039000,-182.42,0.00013885,2]
[421449926,1777671039000,-7928.09596076,0.00014447,2]
[421449928,1777671039000,-300.0,0.00014545,2]
[421449947,1777671039000,-489589.47070277,0.00014548,2]
[421449946,1777671039000,-1804124.27844251,0.00014548,2]
[421449942,1777671039000,-209.81304077,0.00014546,2]
[421449939,1777671039000,-500.0,0.00014546,2]
[421449938,1777671039000,-500.0,0.00014546,2]